fUSD/lending_fUSD_20240924
["ID","MTS","AMOUNT","RATE_DAILY","PERIOD"]
[339053570,1727182236754,-976.36,0.00012886,2]
[339053571,1727182236763,-500.0,0.00012886,2]
[339053572,1727182236772,-500.0,0.00012886,2]
[339053573,1727182236781,-500.0,0.00012886,2]
[339053574,1727182236790,-500.0,0.00012886,2]
[339053575,1727182236799,-635.66,0.00012886,2]
[339053576,1727182236809,-635.66,0.00012886,2]
[339053577,1727182236818,-500.0,0.00012886,2]
[339053578,1727182236827,-500.0,0.00012886,2]
[339053579,1727182236836,-500.0,0.00012886,2]
[339053580,1727182236845,-500.0,0.00012886,2]
[339053581,1727182236855,-167.00945,0.00012886,2]
[339053582,1727182236865,-167.00945,0.00012886,2]
[339053583,1727182236874,-838.47,0.00012886,2]
[339053584,1727182236883,-838.47,0.00012886,2]
[339053585,1727182236892,-1348.51,0.00012886,2]
[339053586,1727182236903,-1348.51,0.00012886,2]
[339053587,1727182236912,-500.0,0.00012886,2]
[339053588,1727182236922,-500.0,0.00012886,2]
[339053589,1727182236931,-151.0,0.00012886,2]
[339053590,1727182236940,-857.15,0.00012886,2]
[339053591,1727182236949,-500.0,0.00012886,2]
[339053592,1727182236959,-500.0,0.00012886,2]
[339053593,1727182236968,-500.0,0.00012886,2]
[339053594,1727182236979,-500.0,0.00012886,2]
[339053595,1727182236989,-383.21737334,0.00012886,2]
[339053596,1727182236999,-500.0,0.00012886,2]
[339053597,1727182237008,-500.0,0.00012886,2]
[339053598,1727182237017,-1000.0,0.00012886,2]
[339053599,1727182237026,-1000.0,0.00012886,2]
[339053600,1727182237035,-1000.0,0.00012886,2]
[339053601,1727182237044,-1076.0,0.00012886,2]
[339053602,1727182237053,-500.0,0.00012887,2]
[339053603,1727182237063,-500.0,0.00012887,2]
[339053604,1727182237071,-500.0,0.00012887,2]
[339053605,1727182237081,-500.0,0.00012887,2]
[339053606,1727182237090,-500.0,0.00012887,2]
[339053607,1727182237099,-500.0,0.00012887,2]
[339053608,1727182237111,-500.0,0.00012887,2]
[339053609,1727182237120,-500.0,0.00012887,2]
[339053610,1727182237130,-1337.58,0.00012887,2]
[339053611,1727182237142,-1337.58,0.00012887,2]
[339053612,1727182237152,-500.0,0.00012887,2]
[339053613,1727182237161,-500.0,0.00012887,2]
[339053614,1727182237170,-500.0,0.00012887,2]
[339053615,1727182237179,-500.0,0.00012887,2]
[339053616,1727182237188,-500.0,0.00012887,2]
[339053617,1727182237198,-500.0,0.00012887,2]
[339053618,1727182237207,-500.0,0.00012887,2]
[339053619,1727182237216,-500.0,0.00012887,2]
[339053620,1727182237226,-500.0,0.00012887,2]
[339053621,1727182237235,-500.0,0.00012887,2]
[339053622,1727182237245,-253.50213,0.00012887,2]
[339053623,1727182237255,-224.878624,0.00012887,2]
[339053624,1727182237265,-167.00945,0.00012887,2]
[339053625,1727182237275,-167.00945,0.00012887,2]
[339053626,1727182237285,-151.0,0.00012887,2]
[339053627,1727182237296,-570.07,0.00012887,2]
[339053628,1727182237306,-1216.94,0.00012887,2]
[339053629,1727182237315,-14992.96,0.00012887,2]
[339053630,1727182237325,-500.0,0.00012888,2]
[339053631,1727182237334,-500.0,0.00012888,2]
[339053632,1727182237343,-1694.27,0.00012888,2]
[339053633,1727182237352,-621.53,0.00012888,2]
[339053634,1727182237361,-500.0,0.00012888,2]
[339053635,1727182237370,-500.0,0.00012888,2]
[339053636,1727182237382,-500.0,0.00012888,2]
[339053637,1727182237392,-500.0,0.00012888,2]
[339053638,1727182237402,-500.0,0.00012888,2]
[339053639,1727182237412,-500.0,0.00012888,2]
[339053640,1727182237423,-500.0,0.00012888,2]
[339053641,1727182237432,-500.0,0.00012888,2]
[339053642,1727182237443,-500.0,0.00012888,2]
[339053643,1727182237454,-500.0,0.00012888,7]
[339053644,1727182237463,-500.0,0.00012888,2]
[339053645,1727182237474,-500.0,0.00012888,2]
[339053646,1727182237485,-500.0,0.00012888,2]
[339053647,1727182237497,-500.0,0.00012888,2]
[339053648,1727182237507,-500.0,0.00012888,2]
[339053649,1727182237517,-790.76,0.00012888,2]
[339053650,1727182237527,-327.29534477,0.00012888,2]
[339053651,1727182237537,-500.0,0.00012888,2]
[339053652,1727182237547,-500.0,0.00012888,2]
[339053653,1727182237558,-500.0,0.00012888,2]
[339053654,1727182237568,-500.0,0.00012888,2]
[339053655,1727182237577,-500.0,0.00012888,2]
[339053656,1727182237586,-10420.45,0.00012888,2]
[339053657,1727182237595,-500.0,0.00012888,2]
[339053658,1727182237605,-500.0,0.00012888,2]
[339053659,1727182237615,-151.0,0.00012888,2]
[339053660,1727182237626,-1442.56,0.00012888,2]
[339053661,1727182237636,-859.84,0.00012888,2]
[339053662,1727182237646,-226.30917762,0.00012888,2]
[339053663,1727182237655,-803.03,0.00012888,2]
[339053664,1727182237665,-986.99,0.00012888,2]
[339053665,1727182237675,-1161.48,0.00012888,2]
[339053666,1727182237684,-1289.2,0.00012888,2]
[339053667,1727182237694,-500.0,0.00012888,2]
[339053668,1727182237703,-500.0,0.00012888,2]
[339053669,1727182237712,-822.18,0.00012888,2]
[339053670,1727182237721,-502.05514174,0.00012888,2]
[339053671,1727182237731,-933.72,0.00012888,2]
[339053672,1727182237740,-500.0,0.00012888,2]
[339053673,1727182237749,-500.0,0.00012888,2]
[339053674,1727182237758,-1169.5,0.00012888,2]
[339053675,1727182237768,-500.0,0.00012888,2]
[339053676,1727182237780,-500.0,0.00012888,2]
[339053677,1727182237790,-500.0,0.00012888,2]
[339053678,1727182237800,-500.0,0.00012888,2]
[339053679,1727182237810,-300.02,0.00012889,2]
[339053680,1727182237820,-500.0,0.00012889,2]
[339053681,1727182237829,-4202.83292256,0.00012889,2]
[339053682,1727182237839,-500.0,0.00012889,2]
[339053683,1727182237848,-574.14810493,0.00012889,2]
[339053684,1727182237859,-500.0,0.00012889,2]
[339053685,1727182237868,-500.0,0.00012889,2]
[339053686,1727182237878,-1337.58,0.00012889,2]
[339053687,1727182237887,-611.67,0.00012889,2]
[339053688,1727182237898,-500.0,0.00012889,2]
[339053689,1727182237907,-500.0,0.00012889,2]
[339053691,1727182237918,-500.0,0.00012889,2]
[339053692,1727182237928,-500.0,0.00012889,2]
[339053693,1727182237940,-500.0,0.00012889,2]
[339053694,1727182237950,-500.0,0.00012889,2]
[339053695,1727182237960,-500.0,0.00012889,2]
[339053696,1727182237969,-500.0,0.00012889,2]
[339053697,1727182237980,-339.30624166,0.00012889,2]
[339053698,1727182237990,-500.0,0.00012889,2]
[339053699,1727182238000,-500.0,0.00012889,2]
[339053700,1727182238010,-500.0,0.00012889,2]
[339053701,1727182238019,-973.22,0.00012889,2]
[339053702,1727182238028,-500.0,0.00012889,2]
[339053703,1727182238039,-500.0,0.00012889,2]
[339053704,1727182238048,-500.0,0.00012889,2]
[339053705,1727182238058,-500.0,0.00012889,2]
[339053706,1727182238067,-500.0,0.00012889,2]
[339053707,1727182238077,-500.0,0.00012889,2]
[339053708,1727182238086,-500.0,0.00012889,2]
[339053709,1727182238096,-500.0,0.00012889,2]
[339053710,1727182238109,-500.0,0.00012889,2]
[339053711,1727182238118,-500.0,0.00012889,2]
[339053712,1727182238128,-976.36,0.00012889,2]
[339053713,1727182238139,-500.0,0.00012889,2]
[339053714,1727182238148,-500.0,0.00012889,2]
[339053715,1727182238158,-500.0,0.00012889,2]
[339053716,1727182238167,-635.66,0.00012889,2]
[339053717,1727182238178,-500.0,0.00012889,2]
[339053718,1727182238188,-500.0,0.00012889,2]
[339053719,1727182238198,-747.72,0.00012889,2]
[339053720,1727182238207,-500.0,0.00012889,2]
[339053721,1727182238218,-167.00945,0.00012889,2]
[339053722,1727182238227,-167.00945,0.00012889,2]
[339053723,1727182238237,-838.47,0.00012889,2]
[339053724,1727182238246,-1348.51,0.00012889,2]
[339053725,1727182238255,-589.39,0.00012889,2]
[339053726,1727182238264,-500.0,0.00012889,2]
[339053727,1727182238274,-500.0,0.00012889,2]
[339053728,1727182238283,-500.0,0.00012889,2]
[339053729,1727182238292,-1566.6,0.00012889,2]
[339053730,1727182238301,-500.0,0.00012889,2]
[339053731,1727182238311,-505.99732972,0.00012889,2]
[339053732,1727182238320,-784.31,0.00012889,2]
[339053733,1727182238329,-500.0,0.00012889,2]
[339053734,1727182238338,-500.0,0.00012889,2]
[339053735,1727182238347,-2185.18,0.00012889,2]
[339053736,1727182238358,-500.0,0.00012889,2]
[339053737,1727182238367,-500.0,0.00012889,2]
[339053738,1727182238377,-58099.06974599,0.0001289,2]
[339053739,1727182238386,-21489.11611048,0.0001289,2]
[339053740,1727182238395,-167.00945,0.0001289,2]
[339053741,1727182238404,-167.00945,0.0001289,2]
[339053742,1727182238413,-151.0,0.0001289,2]
[339053743,1727182238423,-500.0,0.00012893,2]
[339053745,1727182238435,-448.10487349,0.00012897,2]
[339053746,1727182238445,-198.54068962,0.00012898,2]
[339053747,1727182238612,-157.63939403,0.00012898,2]
[339053748,1727182238622,-246.94738208,0.000129,2]
[339053749,1727182238632,-213.85,0.000129,2]
[339053750,1727182238641,-167.53909204,0.000129,2]
[339053751,1727182238651,-167.53909204,0.000129,2]
[339053752,1727182238660,-167.53909204,0.000129,2]
[339053753,1727182238670,-168.03,0.000129,2]
[339053754,1727182238679,-1629.43981538,0.000129,2]
[339053755,1727182238689,-500.0,0.00012902,2]
[339053756,1727182238699,-500.0,0.00012911,2]
[339053757,1727182238709,-448.0,0.00012912,2]
[339053758,1727182238719,-625.0,0.00012912,2]
[339053759,1727182238728,-1549.0,0.00012912,2]
[339053760,1727182238738,-500.0,0.0001292,2]
[339053761,1727182238747,-500.0,0.00012929,2]
[339053762,1727182238757,-455.0,0.0001293,2]
[339053763,1727182238767,-500.0,0.00012937,2]
[339053764,1727182238777,-500.0,0.00012946,2]
[339053765,1727182238786,-500.0,0.00012955,2]
[339053766,1727182238796,-500.0,0.00012964,2]
[339053767,1727182238805,-500.0,0.00012973,2]
[339053768,1727182238815,-332.9876589,0.00012973,2]
[339053769,1727182238825,-180.11864359,0.00012973,2]
[339053770,1727182238834,-500.44530883,0.00012973,2]
[339053771,1727182238843,-500.0,0.00012973,2]
[339053772,1727182238854,-500.30316874,0.00012973,2]
[339053773,1727182238863,-500.0,0.00012973,2]
[339053774,1727182238872,-500.0,0.00012973,2]
[339053775,1727182238881,-500.0,0.00012981,2]
[339053776,1727182238891,-186.45225828,0.00012986,2]
[339053777,1727182238901,-180.53174817,0.00012986,2]
[339053778,1727182238911,-245.31967874,0.00012986,2]
[339053779,1727182238921,-365.61065435,0.00012987,2]
[339053780,1727182238930,-365.61065435,0.00012989,2]
[339053781,1727182238940,-500.0,0.0001299,2]
[339053782,1727182238950,-167.00945,0.00012995,2]
[339053783,1727182238961,-500.0,0.00012995,2]
[339053784,1727182238972,-167.00945,0.00012995,2]
[339053785,1727182238983,-790.76,0.00012995,2]
[339053786,1727182238994,-500.0,0.00012995,2]
[339053787,1727182239004,-500.0,0.00012995,2]
[339053788,1727182239013,-500.0,0.00012995,2]
[339053789,1727182239024,-10420.45,0.00012995,2]
[339053790,1727182239033,-500.0,0.00012995,2]
[339053791,1727182239042,-1442.56,0.00012995,2]
[339053792,1727182239052,-151.0,0.00012995,2]
[339053793,1727182239063,-857.15,0.00012995,2]
[339053794,1727182239073,-859.84,0.00012995,2]
[339053795,1727182239085,-803.03,0.00012995,2]
[339053796,1727182239094,-986.99,0.00012995,2]
[339053797,1727182239104,-1161.48,0.00012995,2]
[339053798,1727182239114,-1289.2,0.00012995,2]
[339053799,1727182239123,-500.0,0.00012995,2]
[339053800,1727182239134,-500.0,0.00012995,2]
[339053801,1727182239146,-822.18,0.00012995,2]
[339053802,1727182239155,-933.72,0.00012995,2]
[339053803,1727182239166,-500.0,0.00012995,2]
[339053804,1727182239177,-386.15992683,0.00012995,2]
[339053805,1727182239188,-1169.5,0.00012995,2]
[339053806,1727182239198,-500.0,0.00012995,2]
[339053807,1727182239208,-500.0,0.00012995,2]
[339053808,1727182239219,-570.07,0.00012995,2]
[339053809,1727182239229,-500.0,0.00012995,2]
[339053810,1727182239238,-1216.94,0.00012995,2]
[339053811,1727182239247,-500.0,0.00012995,2]
[339053812,1727182239257,-500.0,0.00012996,2]
[339053813,1727182239266,-500.0,0.00012996,2]
[339053814,1727182239276,-500.0,0.00012996,2]
[339053815,1727182239285,-500.0,0.00012996,2]
[339053816,1727182239297,-1337.58,0.00012996,2]
[339053817,1727182239307,-500.0,0.00012996,2]
[339053818,1727182239317,-500.0,0.00012996,2]
[339053819,1727182239328,-500.0,0.00012996,2]
[339053820,1727182239337,-500.0,0.00012996,2]
[339053821,1727182239347,-1694.27,0.00012996,2]
[339053822,1727182239356,-500.0,0.00012996,2]
[339053823,1727182239365,-500.0,0.00012996,2]
[339053824,1727182239375,-505.47631318,0.00012996,2]
[339053825,1727182239384,-505.53492076,0.00012996,2]
[339053826,1727182239394,-506.03178917,0.00012996,2]
[339053827,1727182239402,-621.53,0.00012996,2]
[339053828,1727182239410,-500.0,0.00012996,2]
[339053829,1727182239419,-500.0,0.00012996,2]
[339053830,1727182239428,-500.0,0.00012996,2]
[339053831,1727182239438,-500.0,0.00012996,2]
[339053832,1727182239446,-500.0,0.00012996,2]
[339053833,1727182239455,-500.0,0.00012996,2]
[339053834,1727182239463,-500.0,0.00012996,2]
[339053835,1727182239471,-500.0,0.00012996,2]
[339053836,1727182239479,-500.0,0.00012996,2]
[339053837,1727182239487,-500.0,0.00012996,2]
[339053838,1727182239497,-500.0,0.00012996,2]
[339053839,1727182239507,-500.0,0.00012996,2]
[339053840,1727182239515,-500.0,0.00012996,2]
[339053841,1727182239524,-500.0,0.00012996,2]
[339053842,1727182239533,-500.0,0.00012996,2]
[339053843,1727182239541,-500.0,0.00012996,2]
[339053844,1727182239549,-500.0,0.00012996,2]
[339053846,1727182239558,-500.0,0.00012996,2]
[339053848,1727182239567,-500.0,0.00012996,2]
[339053850,1727182239575,-605.04543482,0.00012996,2]
[339053851,1727182239584,-500.0,0.00012996,2]
[339053852,1727182239593,-500.0,0.00012996,2]
[339053853,1727182239602,-500.0,0.00012996,2]
[339053854,1727182239612,-500.0,0.00012996,2]
[339053856,1727182239621,-500.0,0.00012996,2]
[339053858,1727182239630,-155.48,0.00012996,2]
[339053859,1727182239639,-500.0,0.00012996,2]
[339053860,1727182239649,-500.0,0.00012996,2]
[339053861,1727182239659,-500.0,0.00012996,2]
[339053862,1727182239668,-500.0,0.00012996,7]
[339053863,1727182239677,-500.0,0.00012996,2]
[339053864,1727182239686,-500.0,0.00012996,2]
[339053865,1727182239695,-307.53679247,0.00012996,2]
[339053866,1727182239704,-747.72,0.00012996,2]
[339053867,1727182239713,-747.72,0.00012996,2]
[339053868,1727182239727,-747.72,0.00012996,2]
[339053869,1727182239737,-747.72,0.00012996,2]
[339053870,1727182239748,-500.0,0.00012996,2]
[339053871,1727182239758,-500.0,0.00012996,2]
[339053872,1727182239767,-500.0,0.00012996,2]
[339053873,1727182239776,-167.00945,0.00012996,2]
[339053874,1727182239786,-167.00945,0.00012996,2]
[339053875,1727182239795,-500.0,0.00012996,2]
[339053876,1727182239804,-500.0,0.00012996,2]
[339053877,1727182239814,-500.0,0.00012996,2]
[339053878,1727182239823,-167.00945,0.00012996,2]
[339053879,1727182239832,-167.00944,0.00012996,2]
[339053880,1727182239842,-589.39,0.00012996,2]
[339053881,1727182239851,-589.39,0.00012996,2]
[339053882,1727182239866,-589.39,0.00012996,2]
[339053883,1727182239876,-589.39,0.00012996,2]
[339053884,1727182239886,-500.0,0.00012996,2]
[339053885,1727182239895,-481.68578348,0.00012996,2]
[339053886,1727182239905,-500.0,0.00012996,2]
[339053887,1727182239914,-790.76,0.00012996,2]
[339053888,1727182239923,-790.76,0.00012996,2]
[339053889,1727182239934,-790.76,0.00012996,2]
[339053890,1727182239943,-500.0,0.00012996,2]
[339053891,1727182239952,-500.0,0.00012996,2]
[339053892,1727182239961,-500.0,0.00012996,2]
[339053893,1727182239971,-500.0,0.00012996,2]
[339053894,1727182239981,-500.0,0.00012996,2]
[339053895,1727182239990,-500.0,0.00012996,2]
[339053896,1727182240000,-500.0,0.00012996,2]
[339053897,1727182240010,-500.0,0.00012996,2]
[339053898,1727182240020,-500.0,0.00012996,2]
[339053899,1727182240030,-500.0,0.00012996,2]
[339053900,1727182240039,-500.0,0.00012996,2]
[339053901,1727182240049,-1566.6,0.00012996,2]
[339053902,1727182240059,-1566.6,0.00012996,2]
[339053903,1727182240068,-1566.6,0.00012996,2]
[339053904,1727182240078,-1566.6,0.00012996,2]
[339053905,1727182240088,-500.0,0.00012996,2]
[339053906,1727182240098,-500.0,0.00012996,2]
[339053907,1727182240110,-500.0,0.00012996,2]
[339053909,1727182240119,-500.0,0.00012996,2]
[339053911,1727182240128,-10420.45,0.00012996,2]
[339053913,1727182240141,-3925.81328874,0.00012996,2]
[339053936,1727182240346,-797.175,0.00012996,2]
[339053960,1727182240695,-500.0,0.00012973,2]
[339053962,1727182240705,-487.54270914,0.00012996,2]
[339053964,1727182240716,-5209.91900212,0.00012996,2]
[339053966,1727182240725,-8893.56324451,0.00012996,2]
[339053968,1727182240736,-1526.88675549,0.00012996,2]
[339053970,1727182240745,-500.0,0.00012996,2]
[339053972,1727182240754,-500.0,0.00012996,2]
[339053974,1727182240764,-500.0,0.00012996,2]
[339053976,1727182240774,-500.0,0.00012996,2]
[339053978,1727182240783,-500.0,0.00012996,2]
[339053980,1727182240792,-205.90820571,0.00012996,2]
[339053987,1727182240849,-294.09179429,0.00012996,2]
[339053989,1727182240860,-500.0,0.00012996,2]
[339053991,1727182240869,-109.73970349,0.00012996,2]
[339053994,1727182240881,-390.26029651,0.00012996,2]
[339053996,1727182240891,-1442.56,0.00012996,2]
[339053998,1727182240900,-412.20462748,0.00012996,2]
[339054000,1727182240911,-1030.35537252,0.00012996,2]
[339054002,1727182240920,-178.104126,0.00012996,2]
[339054004,1727182240929,-1442.56,0.00012996,2]
[339054006,1727182240938,-857.15,0.00012996,2]
[339054008,1727182240947,-857.15,0.00012996,2]
[339054010,1727182240956,-857.15,0.00012996,2]
[339054012,1727182240966,-859.84,0.00012996,2]
[339054014,1727182240975,-859.84,0.00012996,2]
[339054016,1727182240985,-859.84,0.00012996,2]
[339054018,1727182240994,-784.31,0.00012996,2]
[339054020,1727182241003,-784.31,0.00012996,2]
[339054022,1727182241013,-784.31,0.00012996,2]
[339054024,1727182241023,-784.31,0.00012996,2]
[339054026,1727182241032,-803.03,0.00012996,2]
[339054027,1727182241042,-803.03,0.00012996,2]
[339054029,1727182241051,-803.03,0.00012996,2]
[339054031,1727182241060,-554.61120619,0.00012996,2]
[339054033,1727182241070,-986.99,0.00012996,2]
[339054035,1727182241079,-986.99,0.00012996,2]
[339054037,1727182241088,-986.99,0.00012996,2]
[339054039,1727182241097,-1161.48,0.00012996,2]
[339054041,1727182241107,-1161.48,0.00012996,2]
[339054043,1727182241116,-1161.48,0.00012996,2]
[339054045,1727182241126,-1289.2,0.00012996,2]
[339054047,1727182241137,-803.37529531,0.00012996,2]
[339054049,1727182241149,-485.82470469,0.00012996,2]
[339054051,1727182241158,-202.67529531,0.00012996,2]
[339054054,1727182241169,-362.78211077,0.00012996,2]
[339054056,1727182241182,-723.74259392,0.00012996,2]
[339054058,1727182241191,-500.0,0.00012996,2]
[339054060,1727182241201,-62.10169726,0.00012996,2]
[339054063,1727182241217,-437.89830274,0.00012996,2]
[339054065,1727182241228,-67.12733601,0.00012996,2]
[339054067,1727182241239,-432.87266399,0.00012996,2]
[339054069,1727182241249,-500.0,0.00012996,2]
[339054071,1727182241258,-500.0,0.00012996,2]
[339054073,1727182241268,-500.0,0.00012996,2]
[339054075,1727182241279,-822.18,0.00012996,2]
[339054077,1727182241290,-822.18,0.00012996,2]
[339054080,1727182241301,-822.18,0.00012996,2]
[339054082,1727182241310,-933.72,0.00012996,2]
[339054084,1727182241319,-933.72,0.00012996,2]
[339054085,1727182241328,-933.72,0.00012996,2]
[339054087,1727182241337,-500.0,0.00012996,2]
[339054089,1727182241346,-106.91952515,0.00012996,2]
[339054092,1727182241358,-279.62,0.00012996,2]
[339054094,1727182241377,-113.46047485,0.00012996,2]
[339054096,1727182241387,-500.0,0.00012996,2]
[339054098,1727182241396,-2185.18,0.00012996,2]
[339054100,1727182241404,-1924.88291312,0.00012996,2]
[339054102,1727182241415,-260.29708688,0.00012996,2]
[339054104,1727182241424,-927.32621851,0.00012996,2]
[339054106,1727182241435,-485.28526725,0.00012996,2]
[339054109,1727182241447,-460.89263148,0.00012996,2]
[339054118,1727182241525,-311.67588276,0.00012996,2]
[339054120,1727182241535,-2185.18,0.00012996,2]
[339054122,1727182241544,-1169.5,0.00012996,2]
[339054124,1727182241553,-1169.5,0.00012996,2]
[339054126,1727182241563,-1169.5,0.00012996,2]
[339054128,1727182241572,-500.0,0.00012996,2]
[339054130,1727182241582,-500.0,0.00012996,2]
[339054132,1727182241591,-500.0,0.00012996,2]
[339054134,1727182241600,-500.0,0.00012996,2]
[339054136,1727182241613,-419.42254858,0.00012996,2]
[339054138,1727182241622,-500.0,0.00012996,2]
[339054140,1727182241631,-570.07,0.00012996,2]
[339054142,1727182241641,-500.0,0.00012996,2]
[339054144,1727182241650,-570.07,0.00012996,2]
[339054146,1727182241659,-500.0,0.00012996,2]
[339054148,1727182241668,-570.07,0.00012996,2]
[339054150,1727182241677,-570.07,0.00012996,2]
[339054152,1727182241687,-1216.94,0.00012996,2]
[339054154,1727182241695,-1216.94,0.00012996,2]
[339054156,1727182241705,-1216.94,0.00012996,2]
[339054158,1727182241714,-1216.94,0.00012996,2]
[339054160,1727182241723,-500.0,0.00012996,2]
[339054162,1727182241732,-500.0,0.00012996,2]
[339054164,1727182241741,-500.0,0.00012996,2]
[339054166,1727182241751,-500.0,0.00012997,2]
[339054168,1727182241760,-500.0,0.00012997,2]
[339054170,1727182241769,-74423.04852709,0.00012997,2]
[339054174,1727182241794,-919.47887202,0.00012997,2]
[339054176,1727182241805,-505.66665384,0.00012997,2]
[339054178,1727182241816,-535.41900002,0.00012997,2]
[339054180,1727182241827,-521.59343028,0.00012997,2]
[339054182,1727182241838,-453.16590618,0.00012997,2]
[339054185,1727182241862,-2809.89847193,0.00012997,2]
[339054255,1727182242837,-170.74811374,0.00012879,2]
[339054256,1727182242848,-4202.83292255,0.00012889,2]
[339054257,1727182242861,-9324.72811506,0.00012997,2]
[339054258,1727182243054,-598.0,0.00012997,2]
[339054259,1727182243065,-142533.60537573,0.00012997,2]
[339054448,1727182451676,291.18,0.00010959,2]
[339054449,1727182463463,1000.0,0.00021,60]
[339054450,1727182464390,1000.0,0.00021,60]
[339054451,1727182465608,1000.0,0.00021,60]
[339054452,1727182466420,1000.0,0.00021,60]
[339054453,1727182467152,1000.0,0.00021,60]
[339054454,1727182467864,1000.0,0.00021,60]
[339054455,1727182468527,1000.0,0.00021,60]
[339054456,1727182469106,1000.0,0.00021,60]
[339054457,1727182469784,1000.0,0.00021,60]
[339054458,1727182470454,1000.0,0.00021,60]
[339054459,1727182471339,1000.0,0.00021,60]
[339054460,1727182472018,1000.0,0.00021,60]
[339054461,1727182480022,1000.0,0.00021,60]
[339054462,1727182525785,1000.0,0.00021,60]
[339054463,1727182757307,620.13,9.768e-05,2]
[339054464,1727182774992,801.12288932,0.00022,120]
[339054465,1727182802613,289.21636165,9.768e-05,2]
[339054466,1727182810962,173.01,9.268e-05,2]
[339054467,1727182818785,150.0,3.02e-06,30]
[339054468,1727182819455,150.0,3.02e-06,30]
[339054469,1727182820298,150.0,3.02e-06,30]
[339054470,1727182834410,1050.0,0.00011,2]
[339054471,1727182893005,321.79,0.00010959,2]
[339054474,1727183038850,150.0,3.02e-06,2]
[339054475,1727183039546,150.0,3.08e-06,2]
[339054476,1727183040512,150.0,3.08e-06,2]
[339054477,1727183093737,150.0,3.38e-06,2]
[339054478,1727183094370,150.0,3.26e-06,2]
[339054479,1727183095459,150.0,3.26e-06,2]
[339054480,1727183102987,200.0,3.24e-06,2]
[339054482,1727183238907,311.19976574,0.00021917,120]
[339054496,1727183315623,610.79,9.285e-05,2]
[339054497,1727183338360,874.712871,0.00021,60]
[339054498,1727183351887,874.712871,0.00021,60]
[339054561,1727183417070,492.630278,0.00011088,2]
[339054571,1727183431940,-205.07,0.0001121,2]
[339054573,1727183431950,-155.86,0.00011212,2]
[339054575,1727183431959,-300.0,0.00011479,2]
[339054576,1727183431969,-23900.0,0.0001148,2]
[339054578,1727183431978,-250.0,0.00011499,2]
[339054580,1727183431988,-513.31,0.0001152,2]
[339054582,1727183431998,-1000.0,0.00011545,2]
[339054584,1727183432007,-150.0,0.00011545,2]
[339054585,1727183432016,-610.79,0.00011549,2]
[339054586,1727183432026,-200.0,0.00011655,2]
[339054587,1727183432036,-170.65,0.00011655,2]
[339054588,1727183432046,-150.0,0.00011688,2]
[339054589,1727183432056,-150.0,0.00011688,2]
[339054590,1727183432065,-150.0,0.00011688,2]
[339054591,1727183432075,-150.0,0.00011688,2]
[339054592,1727183432084,-348.74,0.00011749,2]
[339054593,1727183432094,-150.0,0.00011779,2]
[339054594,1727183432103,-150.0,0.0001178,2]
[339054595,1727183432112,-299.99,0.0001178,2]
[339054596,1727183432122,-150.99,0.0001178,2]